bitfinex-derivatives/quotes_ETHF0:USTF0_20250322
["timestamp","ask_amount","ask_price","bid_price","bid_amount"]
[1742636740276,19.53293,2004.3,2004.2,0.00747962]
[1742636740478,17.8028,2004.3,2004.2,1.00575962]
[1742636740674,13.2648,2004.3,2004.2,2.36615962]
[1742636740872,2.73872556,2004.5,2004.2,4.57567962]
[1742636741079,12.74452556,2004.5,2004.4,0.99818]
[1742636741681,15.09625556,2004.5,2004.4,1.3604]
[1742636741879,0.99818,2004.4,2004.3,0.99819]
[1742636742182,13.12058,2004.4,2004.3,2.35859]
[1742636742381,12.1224,2004.4,2004.3,2.35859]
[1742636742678,13.12058,2004.4,2004.3,2.35859]
[1742636743078,12.1224,2004.4,2004.3,2.35859]
[1742636743674,13.12058,2004.4,2004.3,2.35859]
[1742636744079,3.11478,2004.4,2004.3,2.35859]
[1742636744277,13.12058,2004.4,2004.3,2.35859]
[1742636745276,13.12058,2004.4,2004.3,1.3604]
[1742636745484,0.99823,2004.3,2004.2,0.00747962]
[1742636745684,15.53873,2004.3,2004.2,0.00747962]
[1742636745885,18.79873,2004.3,2004.2,2.40795962]
[1742636746578,15.59093,2004.3,2004.2,2.40795962]
[1742636747184,14.5927,2004.3,2004.2,2.40795962]
[1742636747387,15.59093,2004.3,2004.2,2.40795962]
[1742636747582,3.26,2004.3,2004.2,2.40795962]
[1742636748084,3.26743556,2004.5,2004.4,0.99818]
[1742636748782,3.26743556,2004.5,2004.4,3.02318]
[1742636749187,1.00556556,2004.5,2004.4,3.02318]
[1742636749380,13.00636556,2004.5,2004.4,1.2898]
[1742636749586,0.99823,2004.3,2004.2,0.00747962]
[1742636749778,17.47383,2004.3,2004.2,0.00747962]
[1742636750279,18.19063,2004.3,2004.2,0.00747962]
[1742636750481,18.19063,2004.3,2004.2,1.29727962]
[1742636751081,16.26093,2004.3,2004.2,2.29555962]
[1742636751386,19.46873,2004.3,2004.2,2.29555962]
[1742636751886,19.46873,2004.3,2004.2,0.00747962]
[1742636752291,19.46873,2004.3,2004.2,1.00575962]
[1742636752491,19.46873,2004.3,2004.2,0.00747962]
[1742636752877,19.46873,2004.3,2004.2,1.00575962]
[1742636753076,16.26093,2004.3,2004.2,1.00575962]
[1742636753479,16.26093,2004.3,2004.2,2.35275962]
[1742636753891,14.5469,2004.3,2004.2,2.35275962]
[1742636755388,18.75293,2004.3,2004.2,2.35275962]
[1742636757294,15.54513,2004.3,2004.2,2.35275962]
[1742636758806,15.54513,2004.3,2004.2,1.35447962]
[1742636760497,15.54513,2004.3,2004.2,0.00747962]
[1742636762290,15.54513,2004.3,2004.2,1.41117962]
[1742636763091,15.54513,2004.3,2004.2,2.40945962]
[1742636764999,12.28213,2004.3,2004.2,2.40945962]
[1742636765204,14.5399,2004.3,2004.2,2.40945962]
[1742636765594,3.256,2004.3,2004.2,2.40945962]
[1742636765789,4.5471,2004.3,2004.2,2.40945962]
[1742636766200,15.55113,2004.3,2004.2,2.40945962]
[1742636768105,14.5529,2004.3,2004.2,2.40945962]
[1742636769005,15.55113,2004.3,2004.2,2.40945962]
[1742636770096,14.5529,2004.3,2004.2,2.40945962]
[1742636770404,4.5471,2004.3,2004.2,2.40945962]
[1742636772699,15.55113,2004.3,2004.2,1.41117962]
[1742636775498,15.55113,2004.3,2004.2,2.40945962]
[1742636776201,0.72433556,2004.5,2004.2,1.41117962]
[1742636776391,12.07663556,2004.5,2004.4,0.99818]
[1742636777005,0.00743556,2004.5,2004.4,2.26248]
[1742636777204,3.26243556,2004.5,2004.4,2.26248]
[1742636777909,0.00743556,2004.5,2004.4,2.26248]
[1742636781706,0.00743556,2004.5,2004.4,2.66912878]
[1742636781907,0.00743556,2004.5,2004.4,2.26248]
[1742636782108,0.00743556,2004.5,2004.4,2.799281]
[1742636782406,0.00743556,2004.5,2004.4,2.26248]
[1742636784107,0.00743556,2004.5,2004.4,2.65671386]
[1742636785212,0.00743556,2004.5,2004.4,3.19315392]
[1742636786114,0.00743556,2004.5,2004.4,2.26248]
[1742636786701,1.33943556,2004.5,2004.4,2.26248]
[1742636787405,0.00743556,2004.5,2004.4,2.26248]
[1742636793408,0.00743556,2004.5,2004.4,5.50648]
[1742636796812,0.00743556,2004.5,2004.4,6.04272749]
[1742636797413,0.00743556,2004.5,2004.4,6.04271373]
[1742636797802,3.2078,2005.0,2004.9,0.99793]
[1742636797803,11.35985,2005.0,2004.9,0.99793]
[1742636798000,1.266,2005.7,2005.6,0.99758]
[1742636798203,0.7251,2005.8,2005.7,0.99753]
[1742636798408,1.4558,2005.8,2005.7,0.99753]
[1742636798614,11.4616,2005.8,2005.7,0.99753]
[1742636800318,14.7266,2005.8,2005.7,0.99753]
[1742636801619,0.7307,2005.8,2005.7,0.99753]
[1742636802111,0.7307,2005.8,2005.7,2.32293]
[1742636802412,3.2078,2007.1,2006.4,2.49288]
[1742636802616,10.0058,2006.8,2006.7,0.99703]
[1742636802819,10.0058,2006.8,2006.7,2.32243]
[1742636803113,0.742,2007.0,2006.9,0.99694]
[1742636803516,3.2078,2007.7,2007.4,0.99669]
[1742636803717,15.99599521,2007.5,2007.1,0.99682]
[1742636803914,0.99684,2007.1,2007.0,3.2078]
[1742636804215,19.0567,2007.1,2006.6,3.2078]
[1742636804413,10.0058,2006.7,2006.6,4.20488]
[1742636804615,12.49849,2006.7,2006.3,3.2078]
[1742636804819,0.99726,2006.3,2006.2,0.99725]
[1742636805118,10.0058,2006.2,2006.1,0.99733]
[1742636805318,10.0058,2006.2,2006.1,2.28513]
[1742636805520,10.0058,2006.2,2006.0,3.2078]
[1742636805814,11.73343,2006.1,2006.0,4.20518]
[1742636806021,15.09343,2006.1,2006.0,4.20518]
[1742636806405,14.0961,2006.1,2006.0,4.20518]
[1742636807120,15.09343,2006.1,2006.0,4.20518]
[1742636808819,14.0961,2006.1,2006.0,4.20518]
[1742636809021,0.7303,2006.1,2006.0,4.20518]
[1742636809233,4.35423,2006.3,2006.2,0.99728]
[1742636809428,15.12593,2006.3,2006.2,0.99728]
[1742636810116,0.99731,2006.2,2006.1,0.99729]
[1742636810322,12.36181,2006.2,2006.1,0.99729]
[1742636811621,11.3645,2006.2,2006.1,0.99729]
[1742636813826,12.36178,2006.2,2006.1,0.99729]
[1742636814123,0.99733,2006.1,2006.0,4.20515]
[1742636814326,12.29343,2006.1,2006.0,4.20515]
[1742636814626,12.29343,2006.1,2006.0,3.2078]
[1742636815011,12.29343,2006.1,2006.0,4.20518]
[1742636816123,0.7095,2006.8,2006.0,13.5901]
[1742636816326,12.0218,2006.8,2006.7,0.99703]
[1742636816622,0.7094,2007.0,2006.8,0.99699]
[1742636816826,2.0159,2007.0,2006.8,0.99699]
[1742636819125,50.0273,2007.3,2006.7,1.3047]
[1742636819126,0.7095,2007.3,2007.2,0.99679]
[1742636819322,11.9895,2007.3,2007.2,0.99679]
[1742636819519,10.0058,2007.3,2007.2,0.99679]
[1742636819724,1.35325138,2007.5,2007.4,0.99669]
[1742636820225,0.07905138,2007.5,2007.4,0.99669]
[1742636820427,0.07905138,2007.5,2007.4,2.29649]
[1742636821028,0.07905138,2007.5,2007.3,0.99674]
[1742636821029,0.99669,2007.4,2007.3,0.99674]
[1742636821228,11.28,2007.4,2007.3,0.99674]
[1742636821833,12.27669,2007.4,2007.3,2.28784]
[1742636822228,0.07905138,2007.5,2007.4,0.99669]
[1742636822530,2.44539138,2007.5,2007.4,0.99669]
[1742636822730,11.45455138,2007.5,2007.2,0.00747962]
[1742636822923,11.00254,2007.3,2007.2,0.00747962]
[1742636823227,13.4178,2007.3,2007.2,1.00426962]
[1742636823526,3.412,2007.3,2007.2,1.00426962]
[1742636823724,15.78424,2007.3,2007.2,0.00747962]
[1742636823922,15.78424,2007.3,2007.2,1.00426962]
[1742636824126,14.7875,2007.3,2007.2,1.00426962]
[1742636824321,0.07905138,2007.5,2007.4,0.99669]
[1742636824722,10.08485138,2007.5,2007.4,0.99669]
[1742636824925,12.41009138,2007.5,2007.4,0.99669]
[1742636825127,0.99669,2007.4,2007.3,2.2878]
[1742636825321,12.33109,2007.4,2007.3,2.2878]
[1742636825725,0.99674,2007.3,2007.2,0.00747962]
[1742636825930,14.7504,2007.3,2007.2,1.00426962]
[1742636826136,0.7645,2007.4,2007.3,0.99674]
[1742636826433,3.08979,2007.4,2007.3,2.27324]
[1742636826633,13.09559,2007.4,2007.3,2.27324]
[1742636826826,12.0989,2007.4,2007.3,2.27324]
[1742636827421,13.09559,2007.4,2007.3,2.27324]
[1742636827734,0.99674,2007.3,2007.2,0.00747962]
[1742636827931,13.00184,2007.3,2007.2,0.00747962]
[1742636831339,14.5051,2007.3,2006.7,5.54412]
[1742636831536,10.0058,2006.6,2006.4,3.9271]
[1742636831832,0.9971,2006.6,2006.5,1.3393]
[1742636832031,2.73129,2007.1,2006.5,1.3393]
[1742636832236,10.0058,2006.9,2006.8,0.99699]
[1742636832426,0.99699,2006.8,2006.7,4.5471]
[1742636832633,11.00279,2006.8,2006.7,1.3393]
[1742636833032,10.0058,2006.8,2006.7,5.54413]
[1742636833233,11.00279,2006.8,2006.7,1.3393]
[1742636833830,0.99703,2006.7,2006.6,0.00747962]
[1742636834031,14.95503,2006.7,2006.6,0.00747962]
[1742636834238,6.6519,2006.9,2006.8,0.99699]
[1742636834239,0.7295,2006.9,2006.8,0.99699]
[1742636834440,0.00747962,2007.0,2006.9,0.99694]
[1742636834732,1.00439962,2007.0,2006.9,0.99694]
[1742636834935,10.01327962,2007.0,2006.9,0.99694]
[1742636835332,11.01016962,2007.0,2006.9,0.99694]
[1742636835533,10.01327962,2007.0,2006.9,0.99694]
[1742636835734,0.99703,2006.7,2006.6,1.00451962]
[1742636836036,11.00283,2006.7,2006.6,1.00451962]
[1742636837336,4.45399,2006.8,2006.7,0.99703]
[1742636837542,13.4628,2006.8,2006.7,2.33413]
[1742636838542,14.45979,2006.8,2006.7,2.33413]
[1742636839144,3.457,2006.8,2006.7,2.33413]
[1742636840138,4.45339962,2007.0,2006.9,0.99694]
[1742636840339,11.00276,2006.9,2006.8,0.99695]
[1742636842540,10.0058,2006.9,2006.8,0.99695]
[1742636842842,11.00274,2006.9,2006.8,0.99695]
[1742636845250,0.99699,2006.8,2006.7,5.54189]
[1742636845446,11.00279,2006.8,2006.7,4.5449]
[1742636845642,11.00279,2006.8,2006.6,0.00747962]
[1742636845643,0.99703,2006.7,2006.6,0.00747962]
[1742636845848,15.13733,2006.7,2006.6,1.00455962]
[1742636846046,15.13733,2006.7,2006.6,0.00747962]
[1742636846447,2.73129,2006.9,2006.8,0.99699]
[1742636846638,12.73709,2006.9,2006.8,0.99699]
[1742636847252,13.73403,2006.9,2006.8,0.99699]
[1742636848644,2.73129,2006.9,2006.8,0.99699]
[1742636849243,13.73403,2006.9,2006.8,0.99699]
[1742636850145,15.12203,2006.9,2006.8,0.99699]
[1742636850347,12.39074,2006.9,2006.8,0.99699]
[1742636851147,10.0058,2006.9,2006.8,0.99699]
[1742636852353,11.00274,2006.9,2006.8,0.99699]
[1742636852854,12.27794,2006.9,2006.8,0.99699]
[1742636853246,0.99699,2006.8,2006.7,0.997]
[1742636853454,2.27219,2006.8,2006.7,2.2766]
[1742636853845,0.99703,2006.7,2006.6,1.00453962]
[1742636854047,15.70803,2006.7,2006.6,0.00747962]
[1742636856049,18.51786079,2006.7,2006.6,0.00747962]
[1742636856761,18.43932,2006.7,2006.6,0.00747962]
[1742636860357,0.99728,2006.2,2006.1,4.2051]
[1742636861757,2.35738,2006.2,2006.1,5.5446]
[1742636861959,12.36318,2006.2,2006.1,4.5473]
[1742636864660,13.06418,2006.2,2006.1,4.5473]
[1742636868463,0.99738,2006.0,2005.9,0.00747962]
[1742636868764,11.00318,2006.0,2005.9,0.00747962]
[1742636869764,12.28968,2006.0,2005.9,1.33517962]
[1742636872560,12.28968,2006.0,2005.9,2.33260962]
[1742636872858,12.28968,2006.0,2005.9,1.33517962]
[1742636875262,13.00428,2006.0,2005.9,1.33517962]
[1742636879369,13.00428,2006.0,2005.9,2.33260962]
[1742636879672,4.39433,2006.1,2006.0,0.99738]
[1742636879871,14.40013,2006.1,2006.0,5.49358]
[1742636880063,11.00313,2006.1,2006.0,5.49358]
[1742636880463,2.73129,2006.4,2006.3,0.99723]
[1742636880672,3.72847,2006.4,2006.3,0.99723]
[1742636880871,0.99728,2006.2,2006.1,1.2884]
[1742636881064,11.00308,2006.2,2006.1,1.2884]
[1742636881468,14.21088,2006.2,2006.1,1.2884]
[1742636881674,15.50748,2006.2,2006.1,1.2884]
[1742636882361,12.29968,2006.2,2006.1,1.2884]
[1742636889671,1.4755,2006.3,2006.1,1.2884]
[1742636889983,10.0058,2006.2,2006.1,2.28573]
[1742636890286,11.00308,2006.2,2006.1,2.28573]
[1742636890581,0.99728,2006.2,2006.1,2.28569]
[1742636891187,0.99728,2006.2,2006.1,2.28573]
[1742636891377,2.35128,2006.2,2006.1,1.2884]
[1742636892185,3.05568,2006.2,2006.1,2.28573]
[1742636892485,2.35128,2006.2,2006.1,2.28573]
[1742636893281,2.35128,2006.2,2006.1,1.2884]
[1742636893686,0.99728,2006.2,2006.1,1.2884]
[1742636893891,0.99733,2006.1,2006.0,3.2078]
[1742636894084,11.00313,2006.1,2006.0,4.6068]
[1742636894385,12.30523,2006.1,2006.0,4.6068]
[1742636895987,0.99738,2006.0,2005.9,0.00747962]
[1742636896185,16.44388,2006.0,2005.9,1.35257962]
[1742636897680,16.44388,2006.0,2005.9,0.00747962]
[1742636897882,16.44388,2006.0,2005.5,1.2865]
[1742636897883,0.99758,2005.6,2005.5,1.2865]
[1742636898384,4.34558,2005.6,2005.5,1.2865]
[1742636898585,16.43838,2005.6,2005.5,1.2865]
[1742636898785,0.99763,2005.5,2005.4,3.2078]
[1742636899089,12.36723,2005.5,2005.4,5.49198]
[1742636899381,2.36143,2005.5,2005.4,5.49198]
[1742636899581,2.36143,2005.5,2005.4,4.4943]
[1742636899779,12.36723,2005.5,2005.4,4.4943]
[1742636900885,0.99773,2005.3,2005.2,0.00747962]
[1742636901087,0.99773,2005.3,2005.2,1.37687962]
[1742636901088,14.35253,2005.3,2005.2,1.37687962]
[1742636901687,15.10293,2005.3,2005.2,0.00747962]
[1742636903488,0.99793,2004.9,2004.8,4.20575]
[1742636903683,0.99793,2004.9,2004.8,3.2078]
[1742636904187,4.34493,2004.9,2004.8,3.2078]
[1742636904382,0.99808,2004.7,2004.5,9.0798]
[1742636904687,0.99808,2004.6,2004.5,10.07791]
[1742636904879,2.36188,2004.6,2004.5,10.07791]
[1742636905077,1.3638,2004.6,2004.5,10.80451]
[1742636905289,4.34705,2004.7,2004.6,0.99808]
[1742636905590,14.35285,2004.7,2004.6,0.99808]
[1742636906093,13.3548,2004.7,2004.6,2.36808]
[1742636906289,3.349,2004.7,2004.6,2.36808]
[1742636906882,4.6588,2004.7,2004.6,2.36808]
[1742636907284,5.65683,2004.7,2004.6,2.36808]
[1742636907996,5.65683,2004.7,2004.6,1.37]
[1742636908689,15.66263,2004.7,2004.6,1.37]
[1742636910395,0.99808,2004.6,2004.5,3.2078]
[1742636910600,0.99813,2004.5,2004.4,0.00747962]
[1742636910896,14.34793,2004.5,2004.4,0.00747962]
[1742636911090,15.66503,2004.5,2004.4,0.00747962]
[1742636911602,18.87283,2004.5,2004.4,0.00747962]
[1742636914790,21.60412,2004.5,2004.4,0.00747962]
[1742636916295,2.49553,2004.4,2004.0,0.99837]
[1742636916495,2.49553,2004.4,2004.0,2.38427]
[1742636916496,0.99835,2004.1,2004.0,2.38427]
[1742636916698,4.33335,2004.1,2004.0,2.38427]
[1742636916891,3.335,2004.1,2004.0,2.38427]
[1742636917096,4.33333,2004.1,2004.0,2.38427]
[1742636918402,3.335,2004.1,2004.0,2.38427]
[1742636919707,4.33333,2004.1,2004.0,2.38427]
[1742636919899,5.63733,2004.1,2004.0,1.3859]
[1742636920401,15.64313,2004.1,2004.0,1.3859]
[1742636925104,15.64313,2004.1,2004.0,2.38428]
[1742636925307,4.31833,2004.1,2004.0,2.38428]
[1742636926300,15.71883,2004.1,2004.0,1.3859]
[1742636927797,15.71883,2004.1,2004.0,2.38428]
[1742636928902,15.71883,2004.1,2004.0,1.3859]
[1742636929407,15.71883,2004.1,2004.0,2.38428]
[1742636931706,2.73129,2004.3,2004.0,1.3859]
[1742636932000,2.73129,2004.3,2004.1,2.29133]
[1742636932001,13.3198,2004.2,2004.1,2.29133]
[1742636932202,14.31808,2004.2,2004.1,2.29133]
[1742636933712,13.3198,2004.2,2004.1,2.29133]
[1742636933911,14.31808,2004.2,2004.1,2.29133]
[1742636936109,13.3198,2004.2,2004.1,2.29133]
[1742636936612,14.31808,2004.2,2004.1,2.29133]
[1742636936916,13.3198,2004.2,2004.1,2.29133]
[1742636937305,14.31808,2004.2,2004.1,2.29133]
[1742636938305,13.3198,2004.2,2004.1,2.29133]
[1742636938703,13.3198,2004.2,2004.1,2.82880501]
[1742636938921,14.31808,2004.2,2004.1,1.293]
[1742636939116,14.31808,2004.2,2004.1,2.29133]
[1742636940517,13.3198,2004.2,2004.1,2.29133]
[1742636941212,1.4389,2004.4,2004.3,0.99823]
[1742636941412,0.99813,2004.6,2004.5,0.9981]
[1742636941715,0.99816,2004.5,2004.4,2.34845]
[1742636941910,11.00396,2004.5,2004.4,2.34845]
[1742636942111,12.29456,2004.5,2004.4,2.34845]
[1742636943111,1.2906,2004.5,2004.4,2.34845]
[1742636943620,4.5896,2004.5,2004.4,2.34845]
[1742636944010,3.299,2004.5,2004.4,2.34845]
[1742636944512,4.6498,2004.5,2004.4,1.3503]
[1742636944712,15.65373,2004.5,2004.4,1.3503]
[1742636944924,15.65373,2004.5,2004.4,2.34848]
[1742636945621,15.65373,2004.5,2004.4,1.3503]
[1742636945817,15.65373,2004.5,2004.4,2.34848]
[1742636946318,15.65373,2004.5,2004.4,1.3503]
[1742636946521,15.65373,2004.5,2004.4,2.34848]
[1742636946711,15.65373,2004.5,2004.4,1.3503]
[1742636946911,15.65373,2004.5,2004.4,2.34848]
[1742636947521,0.99818,2004.4,2004.3,3.2078]
[1742636947724,12.37278,2004.4,2004.3,2.40083]
[1742636948114,12.37278,2004.4,2004.3,1.4026]
[1742636948622,12.37278,2004.4,2004.3,2.40083]
[1742636949521,3.291,2004.5,2004.4,0.99817]
[1742636949822,4.574,2004.5,2004.4,2.31377]
[1742636950013,14.5798,2004.5,2004.4,2.31377]
[1742636950515,15.57793,2004.5,2004.4,1.3156]
[1742636951522,15.57793,2004.5,2004.4,2.31378]
[1742636951716,15.57793,2004.5,2004.4,1.3156]
[1742636951916,15.57793,2004.5,2004.4,2.31378]
[1742636953727,15.57793,2004.5,2004.4,1.3156]
[1742636954222,15.57793,2004.5,2004.3,3.2078]
[1742636954223,0.99818,2004.4,2004.3,3.2078]
[1742636954425,0.99823,2004.3,2004.2,2.36706]
[1742636954624,12.50693,2004.3,2004.2,1.3688]
[1742636954824,13.84413,2004.3,2004.2,2.36708]
[1742636955021,17.14213,2004.3,2004.2,1.3688]
[1742636959125,0.99843,2003.9,2003.8,0.00747962]
[1742636959530,14.29723,2003.9,2003.8,0.00747962]
[1742636959727,15.77433,2003.9,2003.8,0.00747962]
[1742636960023,17.50719,2003.9,2003.3,3.2078]
[1742636960229,11.00448,2003.4,2003.2,0.7467]
[1742636960431,0.99873,2003.3,2003.2,2.0855]
[1742636960631,2.34833,2003.3,2003.2,42.8855]
[1742636960833,1.3496,2003.3,2003.2,42.8855]
[1742636961125,2.34833,2003.3,2003.2,2.0855]
[1742636961726,2.34833,2003.3,2003.2,1.3388]
[1742636961727,12.35413,2003.3,2003.2,1.3388]
[1742636961932,15.65113,2003.3,2003.2,1.3388]
[1742636962737,0.99883,2003.1,2003.0,3.9175864]
[1742636963840,0.99883,2003.1,2003.0,4.9164664]
[1742636964036,0.99883,2003.1,2003.0,3.9175864]
[1742636964637,0.99883,2003.1,2003.0,5.2781864]
[1742636965040,4.29283,2003.1,2003.0,5.2781864]
[1742636966340,5.00573,2003.1,2003.0,5.2781864]
[1742636967643,5.72773,2003.1,2003.0,4.5733864]
[1742636970441,15.73353,2003.1,2003.0,4.5733864]
[1742636970833,15.73353,2003.1,2003.0,1.3655864]
[1742636972036,15.73353,2003.1,2003.0,0.0049864]
[1742636972240,0.99893,2002.9,2002.8,1.3376]
[1742636972443,4.28393,2002.9,2002.8,1.3376]
[1742636972643,14.28973,2002.9,2002.8,1.3376]
[1742636972838,15.67053,2002.9,2002.8,1.3376]
[1742636975254,0.99898,2002.8,2002.7,3.2078]
[1742636975443,13.07528,2002.8,2002.7,3.2078]
[1742636976542,3.284,2002.9,2002.8,0.99893]
[1742636976754,3.284,2002.9,2002.8,2.38613]
[1742636976946,4.28293,2002.9,2002.8,2.1085]
[1742636977447,4.28293,2002.9,2002.8,3.10748]
[1742636977945,4.28293,2002.9,2002.8,2.1085]
[1742636978145,14.28873,2002.9,2002.8,1.3872]
[1742636978351,15.06733,2002.9,2002.8,1.3872]
[1742636979147,15.06733,2002.9,2002.8,2.38618]
[1742636979545,15.06733,2002.9,2002.8,1.3872]
[1742636979949,5.06153,2002.9,2002.8,2.38618]
[1742636980157,4.28293,2002.9,2002.8,3.15598]
[1742636980646,3.284,2002.9,2002.8,3.15598]
[1742636981048,4.28293,2002.9,2002.8,3.15598]
[1742636982551,3.284,2002.9,2002.8,3.15598]
[1742636982754,4.28293,2002.9,2002.8,3.15598]
[1742636983058,3.284,2002.9,2002.8,3.15598]
[1742636983254,4.28293,2002.9,2002.8,3.15598]
[1742636984651,14.28873,2002.9,2002.8,1.3872]
[1742636985259,14.28873,2002.9,2002.8,2.38618]
[1742636985657,14.28873,2002.9,2002.8,1.3872]
[1742636986462,15.61073,2002.9,2002.8,1.3872]
[1742636986754,0.99913,2002.5,2002.4,3.2078]
[1742636986959,14.28693,2002.5,2002.4,3.2078]
[1742636987661,16.36503,2002.5,2002.4,3.2078]
[1742636988361,0.99928,2002.2,2002.1,0.7233]
[1742636988558,14.29708,2002.2,2002.1,0.7233]
[1742636989560,13.2978,2002.2,2001.8,3.2078]
[1742636989861,11.00513,2002.1,2002.0,0.7373]
[1742636990162,0.99943,2001.9,2001.8,3.2078]
[1742636990462,0.99943,2001.9,2001.8,3.9451]
[1742636994260,0.99958,2001.6,2001.5,44.0078]
[1742636994456,0.99958,2001.6,2001.5,45.4916]
[1742636995459,0.99956,2001.7,2001.6,0.99955]
[1742636995859,0.99958,2001.6,2001.5,46.49119]
[1742636996066,0.99956,2001.7,2001.6,0.99956]
[1742636996461,2.49867,2001.9,2001.5,48.7846]
[1742636996659,0.99957,2001.7,2001.6,0.99957]
[1742636996860,0.99958,2001.6,2001.5,49.78419]
[1742636997061,0.99958,2001.6,2001.5,45.4916]
[1742636997567,0.99958,2001.6,2001.5,46.49123]
[1742636997760,0.99958,2001.6,2001.5,45.4916]
[1742636998966,8.99233,2002.0,2001.5,45.4916]
[1742636999164,0.99958,2001.6,2001.5,45.4916]
[1742636999968,0.99958,2001.6,2001.5,46.4912]
[1742637000269,0.99958,2001.6,2001.5,45.4916]
[1742637000471,0.99958,2001.6,2001.5,46.49123]
[1742637001466,0.99958,2001.6,2001.5,45.4916]
[1742637001866,0.99958,2001.6,2001.5,46.8376]
[1742637002067,0.99958,2001.6,2001.5,6.0376]
[1742637002769,0.99958,2001.6,2001.5,5.3035]
[1742637003272,4.28758,2001.6,2001.5,5.3035]
[1742637007566,1.2745,2001.7,2001.5,5.3035]
[1742637007876,0.99958,2001.6,2001.5,4.95709]
[1742637008078,1.2745,2001.7,2001.5,3.9575]
[1742637008279,0.99958,2001.6,2001.5,4.95711]
[1742637008978,0.99958,2001.6,2001.5,3.9575]
[1742637011085,0.99958,2001.6,2001.5,3.2078]
[1742637011669,0.99955,2001.7,2001.6,0.99958]
[1742637012172,0.99955,2001.7,2001.6,1.73748]
[1742637012483,1.71028,2001.8,2001.7,0.99953]
[1742637012683,11.71608,2001.8,2001.7,0.99953]
[1742637013371,5.54976,2001.9,2001.8,0.99948]
[1742637014376,5.54976,2001.9,2001.8,4.20728]
[1742637015177,0.99953,2001.7,2001.6,1.73744]
[1742637015382,13.09961,2001.8,2001.7,0.99953]
[1742637017084,0.99953,2001.7,2001.6,0.99956]
[1742637017277,0.99958,2001.6,2001.5,3.2078]
[1742637017478,2.29066,2001.7,2001.5,3.2078]
[1742637017692,1.2911,2001.6,2001.5,3.2078]
[1742637018276,2.29068,2001.6,2001.5,4.20743]
[1742637019679,1.2911,2001.6,2001.5,4.20743]
[1742637020076,2.29068,2001.6,2001.5,4.20743]
[1742637020279,2.29068,2001.6,2001.5,5.52463]
[1742637020987,1.2911,2001.6,2001.5,5.52463]
[1742637021388,1.2911,2001.6,2001.5,6.06377654]
[1742637021581,3.271,2001.7,2001.6,0.99958]
[1742637021879,0.99946,2001.9,2001.8,0.99946]
[1742637022087,13.14146,2001.9,2001.8,4.20726]
[1742637022884,13.14146,2001.9,2001.8,3.2078]
[1742637023489,13.14146,2001.9,2001.8,4.5239]
[1742637024984,13.14146,2001.9,2001.8,5.52338]
[1742637025196,6.40066,2001.9,2001.8,5.52338]
[1742637025593,16.40646,2001.9,2001.8,4.5239]
[1742637025796,0.99953,2001.7,2001.6,0.99953]
[1742637025983,0.99953,2001.7,2001.6,2.36733]
[1742637026378,1.3561,2001.7,2001.6,2.36733]
[1742637026582,1.3561,2001.7,2001.6,2.90666102]
[1742637026778,2.35563,2001.7,2001.6,2.90666102]
[1742637027294,11.3619,2001.7,2001.6,2.36738]
[1742637027484,0.99952,2001.8,2001.7,0.99953]
[1742637027794,12.36142,2001.8,2001.7,2.36733]
[1742637028485,12.36142,2001.8,2001.7,1.3678]
[1742637028994,12.36142,2001.8,2001.7,2.36733]
[1742637030091,11.3619,2001.8,2001.7,2.36733]
[1742637030393,2.35558,2001.8,2001.7,2.36733]
[1742637033095,2.35558,2001.8,2001.7,1.3678]
[1742637033397,12.36138,2001.8,2001.7,1.3678]
[1742637034283,0.99953,2001.7,2001.6,0.99954]
[1742637034489,12.35933,2001.7,2001.6,1.53923315]
[1742637034690,0.99951,2001.8,2001.7,0.99953]
[1742637035092,11.00531,2001.8,2001.7,0.99953]
[1742637035604,2.30921,2001.8,2001.7,0.99953]
[1742637040705,0.99953,2001.7,2001.6,2.39094]
[1742637040904,2.37143,2001.7,2001.6,2.93087783]
[1742637041607,12.37723,2001.7,2001.6,1.93142001]
[1742637041804,12.37723,2001.7,2001.6,2.93100001]
[1742637042809,12.37723,2001.7,2001.6,1.3914]
[1742637043109,11.3777,2001.7,2001.6,2.93100221]
[1742637043606,11.3777,2001.7,2001.6,2.93099247]
[1742637043909,12.37723,2001.7,2001.6,2.93099247]
[1742637045509,12.37723,2001.7,2001.6,2.93104204]
[1742637047511,15.63723,2001.7,2001.6,2.93104204]
[1742637048311,4.6319,2001.7,2001.6,2.93104204]
[1742637048512,1.3719,2001.7,2001.6,3.63674204]
[1742637048908,1.3719,2001.7,2001.6,4.50073482]
[1742637049221,5.55871,2001.8,2001.7,0.99953]
[1742637049514,14.26531,2001.8,2001.7,2.91349204]
[1742637049707,14.26531,2001.8,2001.7,1.91396204]
[1742637049910,14.26531,2001.8,2001.7,1.3739]
[1742637050210,14.26531,2001.8,2001.7,2.37343]
[1742637050404,14.26531,2001.8,2001.7,2.91354358]
[1742637050604,14.26531,2001.8,2001.7,2.91353831]
[1742637051015,14.26531,2001.8,2001.7,1.91400831]
[1742637051311,14.26531,2001.8,2001.7,2.91353831]
[1742637052110,14.26531,2001.8,2001.7,1.3739]
[1742637053315,14.26531,2001.8,2001.7,2.91354636]
[1742637053611,14.26531,2001.8,2001.7,2.37343]
[1742637054114,14.26531,2001.8,2001.7,1.3739]
[1742637056115,0.99958,2001.6,2001.5,3.2078]
[1742637056319,11.00538,2001.6,2001.5,6.04889697]
[1742637056516,0.99958,2001.6,2001.5,6.04889697]
[1742637057219,0.99958,2001.6,2001.5,6.91357723]
[1742637058017,0.99958,2001.6,2001.5,6.91393007]
[1742637058513,0.99956,2001.7,2001.6,0.99953]
[1742637058705,11.00536,2001.7,2001.6,2.84123003]